fUSD/lending_fUSD_20251120
["ID","MTS","AMOUNT","RATE_DAILY","PERIOD"]
[394483384,1763619037550,-2306.54,0.00016423,2]
[394483385,1763619037559,-550.0,0.00016424,2]
[394483386,1763619037568,-150.0,0.00016425,2]
[394483387,1763619037577,-3624.49,0.00016438,2]
[394483388,1763619037586,-1844.714,0.00016448,2]
[394483389,1763619037596,-362.16,0.00016448,2]
[394483390,1763619037605,-1500.0,0.00016448,2]
[394483391,1763619037617,-150.99,0.00016448,2]
[394483392,1763619037626,-9999.99,0.00016448,2]
[394483393,1763619037635,-3933.94,0.00016448,2]
[394483394,1763619037644,-9999.99,0.00016448,2]
[394483395,1763619037653,-999.99,0.00016448,2]
[394483396,1763619037662,-383.28869737,0.00016473,2]
[394483397,1763619037671,-500.0,0.00016473,2]
[394483398,1763619037681,-500.0,0.00016473,2]
[394483399,1763619037690,-500.0,0.00016473,2]
[394483400,1763619037699,-501.03449953,0.00016473,2]
[394483401,1763619037708,-500.0,0.00016473,2]
[394483403,1763619037718,-500.0,0.00016473,2]
[394483404,1763619037727,-500.0,0.00016473,2]
[394483405,1763619037736,-500.0,0.00016473,2]
[394483406,1763619037745,-500.0,0.00016473,2]
[394483407,1763619037754,-500.0,0.00016473,2]
[394483409,1763619037763,-250.02703424,0.00016493,2]
[394483411,1763619037773,-539.18721293,0.00016493,2]
[394483412,1763619037782,-500.0,0.00016493,2]
[394483413,1763619037791,-500.0,0.00016493,2]
[394483414,1763619037800,-243.64112771,0.00016493,2]
[394483415,1763619037809,-500.0,0.00016493,2]
[394483416,1763619037819,-269.7051126,0.00016493,2]
[394483417,1763619037828,-500.0,0.00016493,2]
[394483418,1763619037837,-500.0,0.00016493,2]
[394483419,1763619037846,-500.0,0.00016493,2]
[394483420,1763619037856,-500.0,0.00016493,2]
[394483421,1763619037865,-500.0,0.00016493,2]
[394483422,1763619037875,-500.0,0.00016493,2]
[394483423,1763619037884,-500.0,0.00016493,2]
[394483424,1763619037893,-500.0,0.00016493,2]
[394483425,1763619037902,-500.0,0.00016493,2]
[394483426,1763619037911,-500.0,0.00016493,2]
[394483427,1763619037920,-500.0,0.00016493,2]
[394483428,1763619037930,-500.0,0.00016493,2]
[394483429,1763619037939,-500.0,0.00016493,2]
[394483430,1763619037948,-500.0,0.00016493,2]
[394483431,1763619037957,-500.0,0.00016493,2]
[394483432,1763619037966,-500.0,0.00016493,2]
[394483433,1763619037975,-500.0,0.00016493,2]
[394483434,1763619037984,-500.0,0.00016493,2]
[394483435,1763619037992,-500.0,0.00016493,2]
[394483436,1763619038002,-500.0,0.00016493,2]
[394483437,1763619038011,-350.0,0.00016493,2]
[394483438,1763619038021,-500.0,0.00016493,2]
[394483439,1763619038031,-500.0,0.00016493,2]
[394483440,1763619038040,-500.0,0.00016493,2]
[394483441,1763619038195,-500.0,0.00016493,2]
[394483442,1763619038205,-280.3328477,0.00016493,2]
[394483443,1763619038214,-1857.19958459,0.00016493,2]
[394483444,1763619038223,-1857.19958459,0.00016493,2]
[394483445,1763619038232,-1857.19958459,0.00016493,2]
[394483446,1763619038241,-1857.19958459,0.00016493,2]
[394483447,1763619038250,-1857.19958459,0.00016493,2]
[394483448,1763619038260,-1857.19958459,0.00016493,2]
[394483449,1763619038269,-1857.19958459,0.00016493,2]
[394483450,1763619038278,-1857.19958459,0.00016493,2]
[394483451,1763619038288,-1857.19958459,0.00016493,2]
[394483452,1763619038297,-1857.19958459,0.00016493,2]
[394483453,1763619038306,-1857.19958459,0.00016493,2]
[394483454,1763619038315,-1857.19958459,0.00016493,2]
[394483455,1763619038324,-1857.19958459,0.00016493,2]
[394483456,1763619038333,-1857.19958459,0.00016493,2]
[394483457,1763619038342,-1857.19958459,0.00016493,2]
[394483458,1763619038351,-1857.19958459,0.00016493,2]
[394483459,1763619038360,-1857.19958459,0.00016493,2]
[394483460,1763619038370,-1857.19958459,0.00016493,2]
[394483461,1763619038379,-1857.19958459,0.00016493,2]
[394483462,1763619038388,-1857.19958459,0.00016493,2]
[394483463,1763619038397,-1857.19958459,0.00016493,2]
[394483464,1763619038406,-1857.19958459,0.00016493,2]
[394483465,1763619038415,-1857.19958459,0.00016493,2]
[394483466,1763619038427,-1857.19958459,0.00016493,2]
[394483467,1763619038436,-1857.19958459,0.00016493,2]
[394483468,1763619038446,-1857.19958459,0.00016493,2]
[394483469,1763619038455,-1857.19958459,0.00016493,2]
[394483470,1763619038464,-1857.19958459,0.00016493,2]
[394483471,1763619038474,-1857.19958459,0.00016493,2]
[394483472,1763619038484,-1857.19958459,0.00016493,2]
[394483473,1763619038494,-1857.19958459,0.00016493,2]
[394483474,1763619038505,-1857.19958459,0.00016493,2]
[394483475,1763619038515,-1857.19958459,0.00016493,2]
[394483476,1763619038525,-1857.19958459,0.00016493,2]
[394483477,1763619038535,-1857.19958459,0.00016493,2]
[394483478,1763619038544,-1857.19958459,0.00016493,2]
[394483479,1763619038554,-1857.19958459,0.00016493,2]
[394483480,1763619038563,-1857.19958459,0.00016493,2]
[394483481,1763619038572,-1857.19958459,0.00016493,2]
[394483482,1763619038581,-1811.95360433,0.00016493,2]
[394483483,1763619038590,-1811.95360433,0.00016493,2]
[394483484,1763619038599,-1811.95360433,0.00016493,2]
[394483485,1763619038609,-1811.95360433,0.00016493,2]
[394483486,1763619038618,-1811.95360433,0.00016493,2]
[394483487,1763619038628,-1811.95360433,0.00016493,2]
[394483488,1763619038636,-1811.95360433,0.00016493,2]
[394483489,1763619038646,-1811.95360433,0.00016493,2]
[394483490,1763619038655,-1811.95360433,0.00016493,2]
[394483491,1763619038664,-1811.95360433,0.00016493,2]
[394483492,1763619038673,-1811.95360433,0.00016493,2]
[394483493,1763619038682,-1811.95360433,0.00016493,2]
[394483494,1763619038692,-1811.95360433,0.00016493,2]
[394483495,1763619038702,-1811.95360433,0.00016493,2]
[394483496,1763619038711,-1811.95360433,0.00016493,2]
[394483497,1763619038721,-1811.95360433,0.00016493,2]
[394483498,1763619038730,-1811.95360433,0.00016493,2]
[394483499,1763619038739,-1938.79035664,0.00016493,2]
[394483500,1763619038748,-1938.79035664,0.00016493,2]
[394483501,1763619038758,-1938.79035664,0.00016493,2]
[394483502,1763619038767,-1938.79035664,0.00016493,2]
[394483503,1763619038777,-1938.79035664,0.00016493,2]
[394483504,1763619038787,-1938.79035664,0.00016493,2]
[394483505,1763619038796,-1938.79035664,0.00016493,2]
[394483506,1763619038806,-1938.79035664,0.00016493,2]
[394483507,1763619038815,-1938.79035664,0.00016493,2]
[394483508,1763619038825,-1938.79035664,0.00016493,2]
[394483509,1763619038835,-173426.83414702,0.00016494,2]
[394483510,1763619038845,-150.0,0.000165,2]
[394483511,1763619038854,-150.0,0.000165,2]
[394483512,1763619038864,-5091.08217468,0.00016567,2]
[394483513,1763619038874,-169.6,0.000166,2]
[394483514,1763619038884,-500.0,0.00016628,2]
[394483515,1763619038894,-10536.35928867,0.00016629,2]
[394483516,1763619038904,-1043.82,0.0001663,2]
[394483517,1763619038914,-150.0,0.0001665,2]
[394483518,1763619038924,-150.0,0.0001665,2]
[394483519,1763619038933,-150.0,0.0001665,2]
[394483520,1763619038943,-150.0,0.0001665,2]
[394483521,1763619038953,-169.6,0.000167,2]
[394483522,1763619038962,-169.6,0.000167,2]
[394483523,1763619038972,-1610.27,0.00016729,2]
[394483524,1763619038982,-509.31660826,0.0001673,2]
[394483525,1763619038992,-571.1,0.0001673,2]
[394483526,1763619039002,-500.0,0.0001673,2]
[394483527,1763619039013,-634.92,0.0001673,2]
[394483528,1763619039023,-634.92,0.0001673,2]
[394483529,1763619039033,-634.92,0.0001673,2]
[394483530,1763619039043,-500.0,0.0001673,2]
[394483531,1763619039054,-500.0,0.0001673,2]
[394483532,1763619039064,-642.36900996,0.0001673,2]
[394483533,1763619039074,-500.0,0.0001673,2]
[394483534,1763619039083,-523.99537992,0.0001673,2]
[394483535,1763619039093,-500.0,0.0001673,2]
[394483536,1763619039102,-500.0,0.0001673,2]
[394483537,1763619039112,-500.0,0.0001673,2]
[394483538,1763619039123,-500.0,0.0001673,2]
[394483539,1763619039133,-500.0,0.0001673,2]
[394483540,1763619039143,-500.0,0.0001673,2]
[394483541,1763619039153,-500.0,0.0001673,2]
[394483542,1763619039164,-500.0,0.0001673,2]
[394483543,1763619039174,-500.0,0.0001673,2]
[394483544,1763619039183,-417.54862495,0.0001673,2]
[394483545,1763619039194,-500.0,0.0001673,2]
[394483546,1763619039203,-500.0,0.0001673,2]
[394483547,1763619039213,-529.61722571,0.0001673,2]
[394483548,1763619039223,-1000.0,0.00016731,2]
[394483549,1763619039232,-5091.08217468,0.00016733,2]
[394483550,1763619039241,-10536.35928858,0.0001677,2]
[394483551,1763619039251,-639.05819945,0.00016771,2]
[394483552,1763619039261,-634.92,0.00016772,2]
[394483553,1763619039270,-500.0,0.00016773,2]
[394483554,1763619039279,-503.07559405,0.00016773,2]
[394483555,1763619039289,-500.0,0.00016773,2]
[394483556,1763619039298,-500.0,0.00016773,2]
[394483557,1763619039307,-500.0,0.00016773,2]
[394483558,1763619039316,-501.23436494,0.00016773,2]
[394483559,1763619039326,-500.90554177,0.00016773,2]
[394483560,1763619039335,-181.63155506,0.00016773,2]
[394483561,1763619039344,-150.0,0.000168,2]
[394483562,1763619039353,-150.0,0.000168,2]
[394483563,1763619039363,-150.0,0.000168,2]
[394483564,1763619039372,-150.0,0.000168,2]
[394483565,1763619039381,-150.0,0.000168,2]
[394483566,1763619039390,-167.56685966,0.00016813,2]
[394483567,1763619039399,-203.0,0.00016841,2]
[394483568,1763619039409,-9241.17977325,0.00016842,2]
[394483569,1763619039419,-150.0,0.00016875,2]
[394483570,1763619039432,-150.0,0.00016878,2]
[394483571,1763619039442,-169.6,0.00016878,2]
[394483572,1763619039452,-321.45,0.0001688,2]
[394483573,1763619039462,-650.0,0.00016891,2]
[394483574,1763619039472,-5091.08217468,0.000169,2]
[394483575,1763619039481,-500.0,0.00016911,2]
[394483576,1763619039491,-10536.35928858,0.00016911,2]
[394483577,1763619039502,-2253.22177404,0.00016916,2]
[394483578,1763619039512,-151.0,0.00016923,2]
[394483579,1763619039522,-151.0,0.00016924,2]
[394483580,1763619039531,-3360.73919654,0.00016945,2]
[394483581,1763619039541,-24398.62,0.00016986,2]
[394483582,1763619039550,-210.69,0.00016987,2]
[394483583,1763619039559,-250.0,0.00017,2]
[394483584,1763619039569,-1610.27,0.00017003,2]
[394483585,1763619039578,-4954.21198009,0.0001701,2]
[394483586,1763619039587,-218.34167533,0.00017016,2]
[394483587,1763619039597,-1000.0,0.00017021,2]
[394483588,1763619039606,-500.0,0.00017021,2]
[394483589,1763619039615,-1000.0,0.00017021,2]
[394483590,1763619039624,-1000.0,0.00017021,2]
[394483591,1763619039634,-325.74821255,0.00017021,2]
[394483592,1763619039643,-360.35317207,0.00017021,2]
[394483593,1763619039652,-500.0,0.00017021,2]
[394483594,1763619039661,-1000.0,0.00017021,2]
[394483595,1763619039671,-514.28691293,0.0001703,2]
[394483596,1763619039680,-10536.35928858,0.00017053,2]
[394483597,1763619039689,-3561.60939622,0.00017059,2]
[394483598,1763619039699,-5091.08217468,0.00017067,2]
[394483599,1763619039708,-2253.22177403,0.0001708,2]
[394483600,1763619039718,-167.56685966,0.00017085,2]
[394483601,1763619039727,-150.0,0.000171,2]
[394483602,1763619039737,-150.0,0.000171,2]
[394483603,1763619039747,-150.0,0.000171,2]
[394483604,1763619039756,-150.0,0.000171,2]
[394483605,1763619039766,-150.0,0.000171,2]
[394483606,1763619039777,-150.0,0.000171,2]
[394483607,1763619039787,-150.0,0.000171,2]
[394483608,1763619039796,-250.0,0.00017168,2]
[394483609,1763619039805,-150.0,0.00017178,2]
[394483610,1763619039814,-150.0,0.00017178,2]
[394483611,1763619039824,-168.8,0.00017178,2]
[394483612,1763619039833,-150.0,0.00017178,2]
[394483613,1763619039842,-150.0,0.00017178,2]
[394483614,1763619039852,-10536.35928858,0.00017194,2]
[394483615,1763619039863,-492.6396435,0.00017195,2]
[394483616,1763619039874,-150.0,0.000172,2]
[394483617,1763619039883,-5091.08217468,0.00017233,2]
[394483618,1763619039895,-2253.22177403,0.00017244,2]
[394483619,1763619039905,-650.0,0.00017268,2]
[394483620,1763619039916,-1610.27,0.00017277,2]
[394483621,1763619039926,-169.6,0.00017278,2]
[394483622,1763619039936,-473.0,0.00017289,2]
[394483623,1763619039946,-500.0,0.00017321,2]
[394483624,1763619039955,-1000.0,0.00017321,2]
[394483625,1763619039965,-1000.0,0.00017321,2]
[394483626,1763619039974,-596.34053693,0.00017321,2]
[394483627,1763619039984,-150.0,0.00017325,2]
[394483628,1763619039994,-10536.35928858,0.00017335,2]
[394483629,1763619040003,-492.6396435,0.00017336,2]
[394483630,1763619040012,-167.56685966,0.00017357,2]
[394483631,1763619040023,-611.0,0.00017397,2]
[394483632,1763619040032,-150.0,0.000174,2]
[394483633,1763619040042,-150.0,0.000174,2]
[394483634,1763619040051,-150.0,0.000174,2]
[394483635,1763619040061,-150.0,0.000174,2]
[394483636,1763619040070,-150.0,0.000174,2]
[394483637,1763619040080,-5091.08217468,0.000174,2]
[394483638,1763619040091,-2253.22177403,0.00017408,2]
[394483639,1763619040100,-650.0,0.00017426,2]
[394483640,1763619040110,-473.0,0.00017434,2]
[394483641,1763619040120,-650.0,0.00017459,2]
[394483642,1763619040129,-10536.35928858,0.00017476,2]
[394483643,1763619040138,-492.6396435,0.00017477,2]
[394483644,1763619040147,-169.6,0.00017478,2]
[394483645,1763619040157,-150.0,0.00017478,2]
[394483646,1763619040167,-1300.0,0.000175,6]
[394483647,1763619040177,-561.0,0.00017506,2]
[394483648,1763619040186,-1605.0,0.00017506,2]
[394483649,1763619040195,-708.819,0.00017506,2]
[394483650,1763619040204,-935.0,0.00017541,2]
[394483651,1763619040214,-150.0,0.0001755,2]
[394483652,1763619040223,-150.0,0.0001755,2]
[394483653,1763619040232,-150.0,0.0001755,2]
[394483654,1763619040242,-150.0,0.0001755,2]
[394483655,1763619040251,-1610.27,0.00017551,2]
[394483656,1763619040260,-5091.08217468,0.00017567,2]
[394483657,1763619040270,-1409.25283353,0.00017568,2]
[394483658,1763619040279,-1500.0,0.00017568,2]
[394483659,1763619040288,-472.01807675,0.00017568,2]
[394483660,1763619040298,-1261.98726429,0.00017568,2]
[394483661,1763619040307,-473.0,0.00017569,2]
[394483662,1763619040317,-2253.22177403,0.00017572,2]
[394483663,1763619040326,-200.0,0.000176,6]
[394483664,1763619040335,-378.59,0.00017612,2]
[394483665,1763619040344,-150.0,0.00017615,2]
[394483666,1763619040353,-150.0,0.00017615,2]
[394483667,1763619040362,-260.0,0.00017615,2]
[394483668,1763619040371,-150.0,0.00017615,2]
[394483669,1763619040380,-150.0,0.00017615,2]
[394483670,1763619040389,-263.32,0.00017615,2]
[394483671,1763619040398,-150.0,0.00017615,2]
[394483672,1763619040407,-150.0,0.00017615,2]
[394483673,1763619040416,-150.0,0.00017615,2]
[394483674,1763619040428,-150.0,0.00017615,2]
[394483675,1763619040438,-150.0,0.00017615,2]
[394483676,1763619040447,-575.0,0.00017615,2]
[394483677,1763619040456,-3434.0,0.00017615,2]
[394483678,1763619040467,-1319.0,0.00017615,2]
[394483679,1763619040476,-609.784,0.00017615,2]
[394483680,1763619040485,-1601.547,0.00017615,2]
[394483681,1763619040495,-822.0,0.00017615,2]
[394483682,1763619040506,-798.021,0.00017615,2]
[394483683,1763619040515,-1256.0,0.00017615,2]
[394483684,1763619040526,-930.251,0.00017615,2]
[394483685,1763619040535,-1220.186,0.00017615,2]
[394483686,1763619040544,-10536.35928858,0.00017618,2]
[394483687,1763619040553,-492.6396435,0.00017618,2]
[394483688,1763619040562,-167.56685966,0.00017628,2]
[394483689,1763619040572,-302.41,0.0001765,2]
[394483690,1763619040580,-5888.0,0.00017683,2]
[394483691,1763619040589,-150.0,0.000177,2]
[394483692,1763619040598,-150.0,0.000177,2]
[394483693,1763619040607,-1000.0,0.000177,2]
[394483694,1763619040616,-200.0,0.000177,6]
[394483695,1763619040625,-420.0,0.00017707,2]
[394483696,1763619040634,-5091.08217468,0.00017733,2]
[394483697,1763619040644,-2253.22177403,0.00017736,2]
[394483698,1763619040652,-10536.35928858,0.00017759,2]
[394483699,1763619040661,-492.6396435,0.00017759,2]
[394483700,1763619040671,-166.66,0.00017769,2]
[394483701,1763619040680,-150.0,0.00017775,2]
[394483702,1763619040689,-1680.0,0.00017796,2]
[394483703,1763619040698,-160.0,0.000178,2]
[394483704,1763619040707,-160.0,0.000178,2]
[394483705,1763619040716,-160.0,0.000178,2]
[394483706,1763619040726,-1000.0,0.000178,2]
[394483708,1763619040735,-326.01818478,0.000178,2]
[394483709,1763619040744,-200.0,0.000178,6]
[394483710,1763619040753,-162.95436659,0.00017806,2]
[394483711,1763619040762,-193.0,0.0001782,2]
[394483712,1763619040772,-2500.0,0.0001782,2]
[394483713,1763619040782,-5000.0,0.0001782,4]
[394483714,1763619040791,-150.0,0.0001782,2]
[394483715,1763619040800,-300.0,0.0001782,2]
[394483716,1763619040810,-150.12675746,0.0001782,2]
[394483717,1763619040819,-250.0,0.0001782,2]
[394483719,1763619040828,-585.10271,0.0001782,2]
[394483720,1763619040838,-225.47000509,0.00017825,2]
[394483721,1763619040847,-300.0,0.00017825,2]
[394483722,1763619040856,-300.0,0.00017825,2]
[394483723,1763619040866,-300.0,0.00017825,2]
[394483724,1763619040875,-300.0,0.00017825,2]
[394483725,1763619040886,-300.0,0.00017825,2]
[394483726,1763619040895,-1610.27,0.00017825,2]
[394483727,1763619040905,-326.01818478,0.0001785,2]
[394483728,1763619040915,-1500.0,0.00017868,2]
[394483729,1763619040925,-278.41536593,0.00017868,2]
[394483730,1763619040934,-10309.04130668,0.00017873,2]
[394483733,1763619041062,-25000.0,0.00017874,3]
[394483734,1763619041072,-479.55759781,0.0001788,3]
[394483735,1763619041082,-634.92,0.00017882,2]
[394483736,1763619041091,-25000.0,0.00017882,3]
[394483737,1763619041100,-25000.0,0.00017891,3]
[394483738,1763619041110,-500.0,0.00017899,2]
[394483739,1763619041120,-2253.22177403,0.000179,2]
[394483740,1763619041129,-25000.0,0.000179,3]
[394483741,1763619041138,-167.56685966,0.000179,2]
[394483742,1763619041147,-492.6396435,0.000179,2]
[394483743,1763619041156,-10536.35928858,0.000179,2]
[394483744,1763619041165,-5091.08217468,0.000179,2]
[394483745,1763619041174,-179.96414648,0.000179,3]
[394483746,1763619041183,-200.0,0.000179,6]
[394483747,1763619041193,-1000.0,0.000179,2]
[394483748,1763619041202,-295.80418224,0.000179,2]
[394483749,1763619041211,-500.37989577,0.000179,2]
[394483750,1763619041220,-326.01818478,0.000179,2]
[394483751,1763619041230,-515.35190765,0.000179,2]
[394483752,1763619041239,-4574.0,0.000179,2]
[394483753,1763619041249,-585.10271,0.0001793,2]
[394483754,1763619041258,-634.92,0.00017972,2]
[394483755,1763619041267,-126350.0,0.00017973,2]
[394483756,1763619041277,-5954.0,0.00017973,2]
[394483757,1763619041287,-647.0,0.00017973,2]
[394483759,1763619041296,-500.0,0.00017973,2]
[394483760,1763619041305,-500.0,0.00017973,2]
[394483761,1763619041314,-500.0,0.00017973,2]
[394483762,1763619041324,-161.60192736,0.00017973,2]
[394483763,1763619041333,-316.17285237,0.00017973,2]
[394483765,1763619041342,-500.0,0.00017973,2]
[394483766,1763619041352,-501.20084487,0.00017973,2]
[394483767,1763619041361,-500.0,0.00017973,2]
[394483768,1763619041370,-501.27362339,0.00017973,2]
[394483769,1763619041380,-500.47789219,0.00017973,2]
[394483771,1763619041389,-500.0,0.00017973,2]
[394483772,1763619041398,-500.0,0.00017973,2]
[394483773,1763619041407,-500.0,0.00017973,2]
[394483774,1763619041416,-500.0,0.00017973,2]
[394483775,1763619041429,-500.0,0.00017973,2]
[394483776,1763619041440,-160.73608923,0.00017973,2]
[394483777,1763619041450,-500.0,0.00017973,2]
[394483778,1763619041459,-572.18369893,0.00017973,2]
[394483779,1763619041470,-500.62908268,0.00017973,2]
[394483780,1763619041479,-297.20176291,0.00017973,2]
[394483781,1763619041488,-500.0,0.00017973,2]
[394483782,1763619041498,-500.0,0.00017973,2]
[394483783,1763619041509,-500.0,0.00017973,2]
[394483785,1763619041518,-500.0,0.00017973,2]
[394483786,1763619041528,-500.60845142,0.00017973,2]
[394483787,1763619041537,-500.0,0.00017973,2]
[394483788,1763619041546,-500.0,0.00017973,2]
[394483789,1763619041555,-500.0,0.00017973,2]
[394483791,1763619041565,-500.0,0.00017973,2]
[394483792,1763619041574,-500.0,0.00017973,2]
[394483793,1763619041583,-500.0,0.00017973,2]
[394483794,1763619041593,-500.0,0.00017973,2]
[394483795,1763619041602,-500.0,0.00017973,2]
[394483797,1763619041612,-500.0,0.00017973,2]
[394483798,1763619041622,-572.12173873,0.00017973,2]
[394483799,1763619041631,-503.86976296,0.00017973,2]
[394483800,1763619041640,-500.96749386,0.00017973,2]
[394483801,1763619041649,-352.02128101,0.00017973,2]
[394483802,1763619041661,-500.0,0.00017973,2]
[394483803,1763619041672,-500.0,0.00017979,2]
[394483804,1763619041682,-500.0,0.00017979,2]
[394483805,1763619041691,-564.48514365,0.00017979,2]
[394483806,1763619041701,-373.5836252,0.00017979,2]
[394483807,1763619041710,-477.48401152,0.00017979,2]
[394483808,1763619041720,-500.0,0.00017979,2]
[394483809,1763619041730,-500.0,0.00017979,2]
[394483810,1763619041739,-500.0,0.00017979,2]
[394483811,1763619041748,-500.0,0.00017979,2]
[394483812,1763619041757,-500.0,0.00017979,2]
[394483813,1763619041767,-1879.2942874,0.0001799,2]
[394483814,1763619041778,-1879.2942874,0.0001799,2]
[394483815,1763619041787,-1879.2942874,0.0001799,2]
[394483816,1763619041797,-151.0,0.00017997,2]
[394483817,1763619041807,-634.92,0.00017999,2]
[394483819,1763619041816,-634.92,0.00017999,2]
[394483820,1763619041825,-634.92,0.00017999,2]
[394483821,1763619041842,-634.92,0.00017999,2]
[394483822,1763619041859,-634.92,0.00017999,2]
[394483824,1763619041869,-634.92,0.00017999,2]
[394483825,1763619041879,-634.92,0.00017999,2]
[394483826,1763619041889,-634.92,0.00017999,2]
[394483827,1763619041899,-634.92,0.00017999,2]
[394483828,1763619041909,-634.92,0.00017999,2]
[394483829,1763619041918,-634.92,0.00017999,2]
[394483830,1763619041928,-634.92,0.00017999,2]
[394483831,1763619041937,-634.92,0.00017999,2]
[394483832,1763619041947,-634.92,0.00017999,2]
[394483833,1763619041958,-634.92,0.00017999,2]
[394483834,1763619041969,-634.92,0.00017999,2]
[394483835,1763619041980,-634.92,0.00017999,2]
[394483836,1763619041990,-635.14299022,0.00017999,2]
[394483837,1763619042001,-300.0,0.00017999,2]
[394483838,1763619042011,-179.85957124,0.00017999,2]
[394483839,1763619042020,-300.0,0.00017999,2]
[394483840,1763619042030,-500.0,0.00017999,2]
[394483841,1763619042040,-630.01716056,0.00017999,2]
[394483842,1763619042049,-162.19021309,0.00018,2]
[394483843,1763619042059,-162.44314539,0.00018,2]
[394483844,1763619042069,-157.46326484,0.00018,2]
[394483845,1763619042079,-163.88615832,0.00018,2]
[394483846,1763619042089,-161.16722895,0.00018,2]
[394483847,1763619042100,-153.23992756,0.00018,2]
[394483848,1763619042110,-158.27867007,0.00018,2]
[394483849,1763619042121,-152.94100217,0.00018,2]
[394483850,1763619042131,-156.98001533,0.00018,2]
[394483851,1763619042141,-155.92779982,0.00018,2]
[394483852,1763619042151,-279.51550177,0.00018,2]
[394483853,1763619042160,-2053900.30651503,0.00018,2]
[394483854,1763619042229,-621.45544996,0.00018,2]
[394483855,1763619042241,-3547.5,0.00018,2]
[394483856,1763619042256,-82062.63937401,0.00018,2]
[394483857,1763619042267,-2482.74583193,0.00018,2]
[394483858,1763619042279,-14015.02614869,0.00018,2]
[394483859,1763619042297,-6494.0,0.00017506,2]
[394483861,1763619042307,-7439.4112,0.00018,2]
[394483865,1763619042956,150.5,0.0002639,120]
[394483867,1763619043355,-757.66386517,0.00018,2]
[394483868,1763619043416,150.5,0.0002638,120]
[394483872,1763619043852,150.5,0.0002637,120]
[394483877,1763619044268,-455.83943095,0.000161,2]
[394483878,1763619044325,150.5,0.0002639,120]
[394483879,1763619044341,-44.16056905,0.000161,2]
[394483880,1763619044352,-169.6,0.000166,2]
[394483881,1763619044361,-926.09435349,0.00018,2]
[394483882,1763619044372,-20205.31889908,0.00018,2]
[394483888,1763619044776,150.5,0.0002638,120]
[394483894,1763619045386,150.5,0.0002637,120]
[394483898,1763619045657,209.84,0.0002639,120]
[394483899,1763619045735,246.17186706,0.00042053,120]
[394483900,1763619045844,-1329811.27382568,0.00018,2]
[394483906,1763619050891,151.0,0.00042053,120]
[394483907,1763619051203,151.0,0.00042053,120]
[394483908,1763619051500,156.954567,0.00042053,120]
[394483909,1763619052896,151.0,0.00042053,120]
[394483911,1763619053199,151.0,0.00042053,120]
[394483914,1763619053493,161.362353,0.00042053,120]
[394483921,1763619063610,268.52539408,0.00042053,120]
[394483929,1763619066802,151.0,0.00042053,120]
[394483930,1763619067080,151.0,0.00042053,120]
[394483931,1763619067418,151.0,0.00042053,120]
[394483932,1763619067826,151.0,0.00042053,120]
[394483933,1763619068128,151.0,0.00042053,120]
[394483940,1763619073095,265.02949918,0.00042053,120]
[394483952,1763619074844,216.82894948,0.00042053,120]
[394483975,1763619086639,151.0,0.00042053,120]
[394483977,1763619087042,151.0,0.00042053,120]
[394483979,1763619087343,151.0,0.00042053,120]
[394483981,1763619087711,230.87758,0.00042053,120]
[394483984,1763619088080,155.621819,0.00042053,120]
[394483987,1763619090431,151.0,0.00042053,120]
[394483988,1763619090729,151.0,0.00042053,120]
[394483989,1763619091023,151.0,0.00042053,120]
[394483990,1763619091315,151.0,0.00042053,120]